bitfinex/quotes_SOLUSD_20241020
["timestamp","ask_amount","ask_price","bid_price","bid_amount"]
[1729465302465,12.2288,166.69,166.56,64.62867138]
[1729465303249,0.89977221,166.68,166.55,20.0]
[1729465303573,0.02185446,166.57,166.53,30.3766]
[1729465304281,0.02185446,166.57,166.51,27.49905892]
[1729465304453,0.02185446,166.57,166.51,18.97443217]
[1729465305274,0.02185446,166.57,166.52,5.18878738]
[1729465305448,0.02185446,166.57,166.52,23.776884]
[1729465306047,0.02185446,166.57,166.53,20.0]
[1729465306254,0.02185446,166.57,166.56,43.776884]
[1729465306659,0.02185446,166.57,166.56,20.0]
[1729465306862,0.02185446,166.57,166.56,43.776884]
[1729465308074,0.02185446,166.57,166.56,76.811484]
[1729465308571,0.02185446,166.57,166.56,43.776884]
[1729465309879,31.0475,166.67,166.56,43.776884]
[1729465309880,31.0475,166.67,166.57,43.776884]
[1729465310055,31.0475,166.67,166.57,49.60483804]
[1729465310251,12.2288,166.69,166.58,0.1]
[1729465310613,32.4606,166.71,166.6,43.776884]
[1729465310753,32.4606,166.71,166.6,49.60483804]
[1729465311362,32.4606,166.71,166.62,43.776884]
[1729465312077,0.12075627,166.63,166.62,43.776884]
[1729465315278,0.12075627,166.63,166.62,23.776884]
[1729465316172,0.12075627,166.63,166.62,30.04436092]
[1729465316852,0.12075627,166.63,166.62,50.04436092]
[1729465317176,0.12075627,166.63,166.62,26.26747692]
[1729465318760,0.12075627,166.63,166.62,50.04436092]
[1729465319159,0.12075627,166.63,166.62,26.26747692]
[1729465321163,0.12075627,166.63,166.62,32.09543096]
[1729465324573,0.12075627,166.63,166.62,12.09543096]
[1729465325280,0.12075627,166.63,166.62,6.26747692]
[1729465325473,0.12075627,166.63,166.58,5.82795404]
[1729465325987,0.12075627,166.63,166.59,20.0]
[1729465326302,0.12075627,166.63,166.61,20.0]
[1729465326592,0.12075627,166.63,166.61,25.82795404]
[1729465328802,0.12075627,166.63,166.57,5.82795404]
[1729465329386,12.0741,166.62,166.57,5.82795404]
[1729465330285,12.0741,166.62,166.58,1.79835429]
[1729465330595,12.0741,166.62,166.53,5.82795404]
[1729465330596,31.8512,166.6,166.53,5.82795404]
[1729465330770,32.75138582,166.6,166.53,5.82795404]
[1729465331170,13.1248,166.59,166.51,13.69845729]
[1729465331666,32.9821,166.57,166.51,7.52757506]
[1729465331865,32.9821,166.57,166.5,121.90631379]
[1729465332292,32.9821,166.57,166.5,114.37873873]
[1729465333193,32.9821,166.57,166.5,121.98336644]
[1729465333870,32.9821,166.57,166.51,25.82795404]
[1729465334070,13.1248,166.59,166.53,20.0]
[1729465334290,13.1248,166.59,166.55,20.0]
[1729465334481,13.1248,166.59,166.55,20.82795404]
[1729465334685,13.1248,166.59,166.56,5.82795404]
[1729465334870,12.6791,166.64,166.56,5.82795404]
[1729465335291,12.6791,166.71,166.57,23.776884]
[1729465335614,12.6791,166.71,166.59,23.776884]
[1729465335771,12.6791,166.71,166.59,26.92428249]
[1729465335980,12.6791,166.71,166.59,5.64739849]
[1729465336477,12.6791,166.71,166.6,20.0]
[1729465337076,31.4107,166.7,166.6,20.0]
[1729465338202,23.976884,166.69,166.56,6.28882138]
[1729465338499,24.67682739,166.67,166.49,5.74739849]
[1729465339286,24.67682739,166.67,166.5,165.43453722]
[1729465339785,24.67682739,166.67,166.52,23.776884]
[1729465340100,24.67682739,166.67,166.53,20.0]
[1729465341671,33.1903,166.66,166.53,20.0]
[1729465341894,23.776884,166.65,166.51,20.0]
[1729465342071,12.355,166.64,166.51,20.0]
[1729465342278,23.776884,166.63,166.51,20.0]
[1729465342480,23.776884,166.63,166.5,5.98985738]
[1729465342770,24.67707683,166.63,166.46,5.64739849]
[1729465343699,24.67707683,166.63,166.49,5.64739849]
[1729465343874,24.67707683,166.63,166.49,29.42428249]
[1729465344276,0.90019283,166.63,166.49,29.42428249]
[1729465344491,0.90019283,166.63,166.52,20.0]
[1729465344901,12.355,166.64,166.56,20.0]
[1729465345604,12.355,166.64,166.58,20.0]
[1729465346502,33.1903,166.66,166.58,20.0]
[1729465346673,33.1903,166.66,166.57,23.776884]
[1729465346674,12.0776,166.68,166.6,20.0]
[1729465347482,0.89980247,166.69,166.61,23.776884]
[1729465347691,30.8252,166.71,166.62,20.0]
[1729465350399,13.55670826,166.72,166.64,20.0]
[1729465351480,13.55670826,166.72,166.62,23.776884]
[1729465351681,12.6570939,166.72,166.63,20.0]
[1729465351906,12.6570939,166.72,166.6,5.9888226]
[1729465352106,12.6570939,166.72,166.61,23.776884]
[1729465352285,13.5567239,166.72,166.61,23.776884]
[1729465353195,13.5567239,166.72,166.62,20.0]
[1729465357495,13.5567239,166.72,166.59,20.0]
[1729465357683,13.5567239,166.72,166.57,20.0]
[1729465357885,13.5567239,166.72,166.57,5.64739849]
[1729465358110,13.5567239,166.72,166.58,20.0]
[1729465358606,13.5567239,166.72,166.59,23.776884]
[1729465358907,13.5567239,166.72,166.6,20.0]
[1729465360624,12.6570939,166.72,166.6,20.0]
[1729465361207,13.55671195,166.72,166.6,20.0]
[1729465361503,30.8585,166.7,166.57,5.64739849]
[1729465361703,30.8585,166.7,166.56,6.07597276]
[1729465361904,23.776884,166.69,166.54,14.25665388]
[1729465362105,23.776884,166.69,166.54,1.04165388]
[1729465362310,13.04,166.68,166.55,5.64739849]
[1729465362518,13.04,166.68,166.54,6.68905237]
[1729465362699,1.61191195,166.72,166.57,19.8333]
[1729465362700,1.51191195,166.72,166.57,19.8333]
[1729465362893,0.6122939,166.88,166.54,7.15342036]
[1729465362894,7.7502939,166.87,166.74,0.1]
[1729465363208,7.7502939,166.87,166.76,0.1]
[1729465363411,7.7502939,166.87,166.77,8.89769471]
[1729465363612,7.7502939,166.87,166.78,20.0]
[1729465363790,7.7502939,166.87,166.79,5.90035025]
[1729465364111,7.7502939,166.87,166.8,20.0]
[1729465364289,0.6122939,166.88,166.82,20.0]
[1729465364491,0.6122939,166.88,166.84,20.0]
[1729465364694,0.6122939,166.88,166.86,20.0]
[1729465364889,0.6122939,166.88,166.75,20.1]
[1729465365092,0.6122939,166.88,166.75,20.0]
[1729465365295,0.6122939,166.88,166.77,20.1]
[1729465365497,0.6122939,166.88,166.79,20.0]
[1729465365792,0.6122939,166.88,166.81,20.0]
[1729465366106,0.6122939,166.88,166.83,20.0]
[1729465366491,0.6122939,166.88,166.83,31.8007005]
[1729465367799,0.6122939,166.88,166.84,11.8007005]
[1729465368001,0.6122939,166.88,166.74,6.09404385]
[1729465368201,0.6122939,166.88,166.74,0.1]
[1729465368522,0.6122939,166.88,166.77,0.1]
[1729465368811,0.6122939,166.88,166.79,0.1]
[1729465369017,0.6122939,166.88,166.8,20.0]
[1729465369409,0.6122939,166.88,166.8,20.1]
[1729465369713,0.6122939,166.88,166.81,20.0]
[1729465370019,0.6122939,166.88,166.83,20.0]
[1729465370792,0.6122939,166.88,166.81,20.0]
[1729465370992,0.6122939,166.88,166.81,20.1]
[1729465371196,0.6122939,166.88,166.81,20.0]
[1729465372198,0.89894076,166.9,166.88,164.3877061]
[1729465375627,23.876884,166.93,166.88,164.3877061]
[1729465376116,23.876884,166.93,166.88,131.0544061]
[1729465376524,23.776884,166.93,166.88,131.0544061]
[1729465377102,23.876884,166.93,166.88,131.0544061]
[1729465377313,23.776884,166.93,166.88,131.0544061]
[1729465377516,23.876884,166.93,166.88,131.0544061]
[1729465378031,23.776884,166.91,166.88,131.0544061]
[1729465378626,24.67564603,166.91,166.88,131.0544061]
[1729465378798,0.89876203,166.91,166.88,131.0544061]
[1729465379226,31.8329,166.94,166.88,131.0544061]
[1729465379433,8.26061619,167.17,166.88,131.0544061]
[1729465379434,13.5231639,167.05,166.9,0.1]
[1729465379803,13.5231639,167.05,166.89,51.87786796]
[1729465379804,13.5231639,167.05,166.93,20.1]
[1729465380121,0.6412639,167.05,166.97,20.1]
[1729465380326,0.6412639,167.05,166.97,28.10098396]
[1729465380535,0.6412639,167.05,166.99,20.0]
[1729465380736,0.6412639,167.05,166.99,43.776884]
[1729465381028,1389.53203222,167.0,166.99,43.876884]
[1729465381324,1389.53203222,167.0,166.99,51.97786796]
[1729465381822,1382.83349422,167.0,166.99,51.97786796]
[1729465382003,1311.3798552,167.0,166.99,58.164798]
[1729465382326,1291.9420612,167.0,166.99,58.164798]
[1729465382822,1280.3540612,167.0,166.99,58.264798]
[1729465383125,1232.47469309,167.0,166.99,58.164798]
[1729465383325,1232.47469309,167.0,166.99,43.876884]
[1729465383529,1232.47469309,167.0,166.99,51.97786796]
[1729465383724,1229.14567869,167.0,166.99,51.97786796]
[1729465385123,1221.11389969,167.0,166.99,51.97786796]
[1729465385326,1215.14389969,167.0,166.99,51.97786796]
[1729465385653,1191.78989969,167.0,166.99,51.97786796]
[1729465385815,1187.78989969,167.0,166.99,51.97786796]
[1729465387716,1171.47582969,167.0,166.99,51.97786796]
[1729465387929,1165.30582969,167.0,166.99,51.97786796]
[1729465388105,1113.58922294,167.0,166.99,52.07786796]
[1729465388303,1037.20147175,167.0,166.99,93.74241277]
[1729465388608,966.31687175,167.0,166.99,93.74241277]
[1729465388809,911.326097,167.0,166.99,57.73241277]
[1729465389125,905.326097,167.0,166.99,57.73241277]
[1729465389302,857.45532225,167.0,166.99,57.73241277]
[1729465389622,845.71532225,167.0,166.99,57.73241277]
[1729465390030,797.8445475,167.0,166.99,57.73241277]
[1729465390328,749.97377275,167.0,166.99,57.73241277]
[1729465390715,702.102998,167.0,166.99,57.73241277]
[1729465391133,654.23222325,167.0,166.99,57.63241277]
[1729465392406,648.48822325,167.0,166.99,57.63241277]
[1729465393146,640.30812325,167.0,166.99,57.63241277]
[1729465396016,628.02812325,167.0,166.99,57.63241277]
[1729465396423,619.92812325,167.0,166.99,57.63241277]
[1729465396630,607.64812325,167.0,166.99,57.63241277]
[1729465396826,607.64812325,167.0,166.99,57.73241277]
[1729465397134,559.77448439,167.0,166.99,57.73241277]
[1729465397440,511.90084553,167.0,166.99,57.73241277]
[1729465397638,464.02720667,167.0,166.99,57.73241277]
[1729465397935,303.87336684,167.0,166.99,57.73241277]
[1729465398124,303.87336684,167.0,166.99,103.33158592]
[1729465398125,85.60341613,167.0,166.99,103.33158592]
[1729465398510,37.74029099,167.0,166.99,103.33158592]
[1729465398716,1e-08,167.0,166.99,103.33158592]
[1729465398913,1e-08,167.0,166.99,89.47605715]
[1729465399119,1e-08,167.0,166.99,103.33158592]
[1729465400137,0.6412639,167.05,167.04,0.2]
[1729465400328,0.6412639,167.05,167.04,20.2]
[1729465400512,0.6412639,167.05,167.04,71.26188603]
[1729465400710,6.30846018,167.13,167.12,0.1]
[1729465400939,6.30846018,167.13,167.12,28.20098396]
[1729465406518,6.30846018,167.13,167.12,51.97786796]
[1729465407127,6.30846018,167.13,167.12,57.73241277]
[1729465408166,6.30846018,167.13,167.12,93.74241277]
[1729465408331,6.30846018,167.13,167.12,95.03814746]
[1729465408927,43.8247,167.3,167.2,0.1]
[1729465409138,43.8247,167.3,167.2,28.20098396]
[1729465409724,99.58613164,167.25,167.22,20.0]
[1729465409930,99.58613164,167.25,167.22,28.20098396]
[1729465410343,99.58613164,167.25,167.24,20.0]
[1729465410667,99.58613164,167.25,167.24,28.10098396]
[1729465410837,99.58613164,167.25,167.24,28.20098396]
[1729465411042,99.58613164,167.25,167.24,28.10098396]
[1729465411228,99.52584674,167.25,167.24,28.10098396]
[1729465412439,99.52584674,167.25,167.24,28.20098396]
[1729465412642,99.52584674,167.25,167.24,28.10098396]
[1729465413029,99.52584674,167.25,167.23,0.1]
[1729465413230,99.52584674,167.25,167.22,0.1]
[1729465413445,99.52584674,167.25,167.24,8.10098396]
[1729465413748,99.52584674,167.25,167.24,28.10098396]
[1729465413938,99.52584674,167.25,167.24,28.20098396]
[1729465415147,99.52584674,167.25,167.21,0.1]
[1729465415746,99.52584674,167.25,167.19,20.0]
[1729465415747,99.52584674,167.25,167.23,20.1]
[1729465415945,99.52584674,167.25,167.23,8.20098396]
[1729465416151,99.52584674,167.25,167.24,20.0]
[1729465417151,99.52584674,167.25,167.19,20.0]
[1729465417831,99.52584674,167.25,167.19,8.10098396]
[1729465418030,99.52584674,167.25,167.21,20.0]
[1729465418456,45.0267,167.24,167.2,8.10098396]
[1729465418762,23.04660266,167.24,167.14,0.1]
[1729465418927,23.04660266,167.24,167.14,8.20098396]
[1729465419132,23.04660266,167.24,167.15,8.20098396]
[1729465419333,23.04660266,167.24,167.15,8.10098396]
[1729465420053,23.04660266,167.24,167.16,20.0]
[1729465420628,23.04660266,167.24,167.17,20.0]
[1729465421260,23.04660266,167.24,167.14,0.1]
[1729465421851,23.04660266,167.24,167.15,8.10098396]
[1729465422330,23.04660266,167.24,167.16,20.0]
[1729465422740,23.04660266,167.24,167.16,8.10098396]
[1729465422940,23.04660266,167.24,167.14,0.1]
[1729465423438,23.04660266,167.24,167.16,20.1]
[1729465423648,23.04660266,167.24,167.18,20.0]
[1729465423958,23.04660266,167.24,167.18,28.10098396]
[1729465424458,23.04660266,167.24,167.2,20.1]
[1729465424645,23.04660266,167.24,167.22,20.0]
[1729465424829,23.04660266,167.24,167.23,28.10098396]
[1729465425753,99.52584674,167.25,167.24,20.0]
[1729465426536,99.52584674,167.25,167.18,20.1]
[1729465426747,99.52584674,167.25,167.19,0.1]
[1729465426942,99.52584674,167.25,167.19,8.20098396]
[1729465427144,99.52584674,167.25,167.2,20.1]
[1729465427435,99.52584674,167.25,167.22,0.1]
[1729465427749,99.52584674,167.25,167.23,20.0]
[1729465427938,99.52584674,167.25,167.24,8.10098396]
[1729465428144,99.52584674,167.25,167.24,28.10098396]
[1729465428345,99.52584674,167.25,167.24,20.0]
[1729465428543,99.52584674,167.25,167.24,20.1]
[1729465428839,99.52584674,167.25,167.24,0.1]
[1729465430252,99.52584674,167.25,167.23,20.1]
[1729465430447,99.52584674,167.25,167.24,0.1]
[1729465430644,99.52584674,167.25,167.24,43.876884]
[1729465430961,99.52584674,167.25,167.24,57.87821821]
[1729465432448,99.52584674,167.25,167.24,49.77723425]
[1729465432651,99.52584674,167.25,167.24,57.87821821]
[1729465433244,99.52584674,167.25,167.24,57.97821821]
[1729465433646,99.52584674,167.25,167.24,57.87821821]
[1729465435379,97.02584674,167.25,167.24,57.87821821]
[1729465439760,97.02584674,167.25,167.24,57.97821821]
[1729465439944,97.02584674,167.25,167.24,57.87821821]
[1729465442081,97.02584674,167.25,167.24,34.10133421]
[1729465442374,97.02584674,167.25,167.24,26.00035025]
[1729465442577,97.02584674,167.25,167.24,34.10133421]
[1729465443476,97.02584674,167.25,167.24,57.87821821]
[1729465443979,97.02584674,167.25,167.24,34.10133421]
[1729465444561,97.02584674,167.25,167.24,5.90035025]
[1729465444781,97.02584674,167.25,167.22,0.1]
[1729465445155,97.02584674,167.25,167.2,8.10098396]
[1729465445156,97.02584674,167.25,167.21,0.1]
[1729465445769,97.02584674,167.25,167.22,8.10098396]
[1729465445963,97.02584674,167.25,167.22,8.20098396]
[1729465446770,97.02584674,167.25,167.23,20.0]
[1729465446973,97.02584674,167.25,167.23,20.1]
[1729465448084,97.02584674,167.25,167.24,28.10098396]
[1729465449482,97.02584674,167.25,167.24,34.10133421]
[1729465451688,96.97142167,167.25,167.24,34.10133421]
[1729465452192,96.97142167,167.25,167.24,34.00133421]
[1729465452580,96.97142167,167.25,167.24,34.10133421]
[1729465452786,96.97142167,167.25,167.24,34.00133421]
[1729465453087,96.97142167,167.25,167.24,34.10133421]
[1729465453270,96.97142167,167.25,167.24,34.00133421]
[1729465453867,96.97142167,167.25,167.24,34.10133421]
[1729465456999,96.97142167,167.25,167.24,25.90035025]
[1729465459970,96.97142167,167.25,167.24,34.00133421]
[1729465460289,96.97142167,167.25,167.24,25.90035025]
[1729465460598,96.97142167,167.25,167.24,5.90035025]
[1729465460789,96.97142167,167.25,167.21,0.1]
[1729465460994,96.97142167,167.25,167.21,6.00035025]
[1729465461500,96.97142167,167.25,167.22,8.10098396]
[1729465461789,96.97142167,167.25,167.21,6.00035025]
[1729465461994,96.97142167,167.25,167.21,5.90035025]
[1729465462198,96.97142167,167.25,167.21,6.00035025]
[1729465463493,96.97142167,167.25,167.22,20.0]
[1729465466777,96.97142167,167.25,167.22,28.10098396]
[1729465467179,96.97142167,167.25,167.22,20.0]
[1729465468785,96.97142167,167.25,167.18,0.1]
[1729465469493,96.97142167,167.25,167.16,8.10098396]
[1729465469699,96.97142167,167.25,167.18,0.1]
[1729465469995,12.9914,167.22,167.17,14.00133421]
[1729465470204,23.776884,167.2,167.1,5.90035025]
[1729465470374,12.9914,167.19,167.1,5.90035025]
[1729465470693,12.9914,167.19,167.08,5.90035025]
[1729465470899,12.9914,167.19,167.08,6.00035025]
[1729465471607,12.9914,167.19,167.11,0.1]
[1729465471783,12.9914,167.19,167.12,5.90035025]
[1729465472681,12.9914,167.19,167.08,6.00035025]
[1729465472880,12.9914,167.19,167.09,8.10098396]
[1729465473079,12.9914,167.19,167.1,6.00035025]
[1729465473286,12.9914,167.19,167.11,8.10098396]
[1729465473487,12.9914,167.19,167.11,5.90035025]
[1729465473685,12.9914,167.19,167.12,20.0]
[1729465473908,12.9914,167.19,167.12,34.10133421]
[1729465474079,12.9914,167.19,167.14,20.1]
[1729465474283,12.9914,167.19,167.15,5.90035025]
[1729465474606,12.9914,167.19,167.16,19.93853336]
[1729465474802,12.9914,167.19,167.17,8.10098396]
[1729465475104,12.9914,167.19,167.17,5.90035025]
[1729465475496,12.9914,167.19,167.17,6.00035025]
[1729465475883,12.9914,167.19,167.17,5.90035025]
[1729465476208,12.9914,167.19,167.17,6.00035025]
[1729465476384,12.9914,167.19,167.18,8.10098396]
[1729465476584,12.9914,167.19,167.18,5.90035025]
[1729465476780,12.9914,167.19,167.18,25.90035025]
[1729465476985,12.9914,167.19,167.18,34.00133421]
[1729465477391,12.9914,167.19,167.18,25.90035025]
[1729465478603,12.9914,167.19,167.18,34.00133421]
[1729465478805,12.9914,167.19,167.18,25.90035025]
[1729465480302,32.131,167.21,167.19,20.0]
[1729465480604,32.131,167.21,167.2,28.10098396]
[1729465482007,129.87002167,167.25,167.21,20.0]
[1729465482303,129.87002167,167.25,167.21,25.90035025]
[1729465483899,129.87002167,167.25,167.21,5.90035025]
[1729465484412,129.87002167,167.25,167.17,6.00035025]
[1729465485697,129.87002167,167.25,167.18,20.0]
[1729465486608,130.76684117,167.25,167.18,20.0]
[1729465486793,36.403684,167.24,167.12,0.1]
[1729465486993,0.1,167.23,167.13,5.90035025]
[1729465487309,12.6268,167.2,167.08,6.32968426]
[1729465487489,12.6268,167.2,167.08,12.23003451]
[1729465487693,12.6268,167.2,167.08,6.00035025]
[1729465487907,12.6268,167.2,167.09,6.00035025]
[1729465488209,12.6268,167.2,167.11,0.1]
[1729465488401,12.6268,167.2,167.12,5.90035025]
[1729465488902,12.6268,167.2,167.13,20.0]
[1729465490507,12.6268,167.2,167.14,5.90035025]
[1729465490821,12.6268,167.2,167.15,20.0]
[1729465493600,12.6268,167.2,167.16,8.10098396]
[1729465493781,12.6268,167.2,167.15,20.0]
[1729465494404,29.9633022,167.25,167.15,20.0]
[1729465494995,23.776884,167.24,167.15,20.0]
[1729465495197,23.876884,167.24,167.14,5.90035025]
[1729465495407,0.1,167.22,167.1,0.1]
[1729465495615,0.1,167.21,167.09,7.03898956]
[1729465495783,0.1,167.21,167.09,6.00035025]
[1729465495984,0.1,167.21,167.09,5.90035025]
[1729465496188,0.1,167.2,167.09,6.00035025]
[1729465496405,0.1,167.21,167.09,5.90035025]
[1729465496611,0.1,167.21,167.09,6.00035025]
[1729465496806,23.876884,167.24,167.1,6.00035025]
[1729465497008,0.1,167.23,167.1,6.00035025]
[1729465497208,0.1,167.22,167.1,6.00035025]
[1729465497415,23.776884,167.21,167.1,6.00035025]
[1729465497809,23.776884,167.21,167.11,20.0]
[1729465498817,23.776884,167.21,167.11,28.10098396]
[1729465499002,23.776884,167.21,167.12,8.10098396]
[1729465499204,43.4848,167.22,167.13,20.0]
[1729465499800,43.4848,167.22,167.11,20.0]
[1729465500395,23.776884,167.21,167.11,20.0]
[1729465500700,23.776884,167.21,167.11,6.00035025]
[1729465501011,23.776884,167.21,167.12,20.0]
[1729465501408,23.876884,167.21,167.12,20.0]
[1729465502514,23.776884,167.21,167.12,20.0]
[1729465504623,22.776884,167.21,167.12,20.0]
[1729465506425,43.4848,167.22,167.13,8.20098396]
[1729465506611,43.4848,167.22,167.14,20.0]
[1729465506799,43.4848,167.22,167.16,20.0]
[1729465507005,0.89701583,167.23,167.17,8.10098396]
[1729465507217,29.9633022,167.25,167.18,20.1]
[1729465507526,29.9633022,167.25,167.17,14.00133421]
[1729465507527,29.9633022,167.25,167.2,20.0]
[1729465508029,29.9633022,167.25,167.21,2.32830629]
[1729465508326,29.9633022,167.25,167.22,2.32830629]
[1729465508532,29.9633022,167.25,167.15,20.1]
[1729465508715,29.9633022,167.25,167.16,2.32916269]
[1729465509322,29.9633022,167.25,167.15,20.0]
[1729465509623,23.776884,167.24,167.16,2.32984153]
[1729465509797,23.876884,167.24,167.16,2.32984153]
[1729465509994,0.1,167.22,167.16,2.32984153]
[1729465510198,0.1,167.22,167.17,2.32984153]
[1729465510395,0.1,167.22,167.18,2.32984153]
[1729465510595,0.1,167.22,167.09,6.00035025]
[1729465510596,0.1,167.22,167.19,2.32984153]
[1729465510796,44.7342,167.19,167.09,5.90035025]
[1729465511003,44.7342,167.19,167.1,2.3329078]
[1729465511222,44.7342,167.19,167.09,5.90035025]
[1729465511223,44.7342,167.19,167.11,2.3329078]
[1729465511424,44.7342,167.19,167.12,2.3329078]
[1729465511626,44.7342,167.19,167.13,2.3329078]
[1729465511826,44.7342,167.19,167.09,5.90035025]
[1729465512029,44.7342,167.19,167.14,2.33346781]
[1729465512324,44.7342,167.19,167.15,2.33346781]
[1729465512507,44.7342,167.19,167.16,2.33346781]
[1729465512714,44.7342,167.19,167.17,2.33346781]
[1729465513026,44.7342,167.19,167.09,5.90035025]
[1729465513224,44.7342,167.19,167.1,2.33254966]
[1729465513527,0.1,167.16,167.1,2.33254966]
[1729465513731,0.1,167.16,167.11,2.33254966]
[1729465513907,44.8515,167.13,167.12,2.33254966]
[1729465514222,44.8515,167.13,167.04,2.33338556]
[1729465514223,23.776884,167.12,167.04,2.33338556]
[1729465514426,23.776884,167.12,167.05,2.33373765]
[1729465514635,23.776884,167.12,167.03,5.90035025]
[1729465514636,23.776884,167.12,167.06,2.33373765]
[1729465514804,23.776884,167.12,167.07,2.33373765]
[1729465515129,24.67444768,167.12,167.08,2.33373765]
[1729465515424,24.77444768,167.12,167.09,2.33373765]
[1729465515629,24.77444768,167.12,167.1,2.33373765]
[1729465515814,24.77444768,167.12,166.99,21.03987782]
[1729465516020,0.1,167.11,167.0,22.33408584]
[1729465516212,24.67444768,167.12,167.01,2.33408584]
[1729465516413,24.67444768,167.12,167.02,2.33408584]
[1729465516607,24.67444768,167.12,167.03,2.33408584]
[1729465516814,24.67444768,167.12,167.04,2.33408584]
[1729465516815,0.89756368,167.12,167.04,2.33408584]
[1729465517033,0.89756368,167.12,167.05,2.33408584]
[1729465517546,0.89756368,167.12,167.05,22.33408584]
[1729465517726,0.89756368,167.12,167.06,2.33408584]
[1729465519140,0.89756368,167.12,167.05,20.0]
[1729465519339,0.89756368,167.12,167.06,2.32997526]
[1729465519738,23.776884,167.11,167.06,2.32997526]
[1729465520043,23.776884,167.11,167.07,2.32997526]
[1729465520248,0.1,167.1,167.08,2.32997526]
[1729465520451,0.1,167.1,167.0,5.90035025]
[1729465520452,0.1,167.1,167.09,2.32997526]
[1729465520637,0.1,167.1,167.0,5.90035025]
[1729465520947,0.1,167.1,167.01,2.3304409]
[1729465521148,0.1,167.1,167.02,2.3304409]
[1729465521340,0.1,167.1,167.03,2.3304409]
[1729465521526,0.1,167.1,167.04,2.3304409]
[1729465521730,0.1,167.1,167.05,2.3304409]
[1729465521936,0.1,167.1,167.06,2.3304409]
[1729465522127,0.1,167.1,167.07,2.3304409]
[1729465522327,0.1,167.1,167.08,2.3304409]
[1729465522640,0.1,167.1,167.09,2.3304409]
[1729465522946,0.1,167.1,167.01,20.0]
[1729465523258,0.89756368,167.12,167.02,2.42934437]
[1729465523447,0.89756368,167.12,167.03,0.1]
[1729465523652,44.7515,167.13,167.03,22.42934437]
[1729465523945,44.7515,167.13,167.04,2.32934437]
[1729465524248,45.74908153,167.13,167.04,2.32934437]
[1729465524856,0.1,167.1,167.04,2.32934437]
[1729465525143,0.1,167.1,167.05,2.32934437]
[1729465525346,0.1,167.11,167.06,2.32934437]
[1729465525537,0.1,167.11,166.98,6.00035025]
[1729465525538,0.1,167.11,167.07,2.32934437]
[1729465525735,0.1,167.11,167.08,2.32934437]
[1729465525938,0.1,167.11,167.09,2.32934437]
[1729465526449,0.1,167.1,167.0,0.1]
[1729465526653,0.1,167.1,167.0,2.42612325]
[1729465526951,0.1,167.11,167.0,2.42612325]
[1729465527143,0.1,167.11,167.0,2.32612325]
[1729465527447,0.1,167.11,167.01,8.10098396]
[1729465527634,0.1,167.11,167.02,22.32612325]
[1729465527945,0.1,167.11,167.03,2.32612325]
[1729465529041,0.1,167.11,167.04,2.32612325]
[1729465529345,0.1,167.1,167.05,2.32612325]
[1729465529540,0.1,167.1,166.99,20.1]
[1729465529541,0.1,167.1,167.06,2.32612325]
[1729465529744,0.1,167.1,167.07,2.32612325]
[1729465529953,0.1,167.1,166.99,20.1]
[1729465529954,0.1,167.1,167.08,2.32599717]
[1729465530159,0.1,167.1,166.99,20.1]
[1729465530160,0.1,167.1,167.0,2.32599717]
[1729465530335,0.1,167.1,167.01,2.32553457]
[1729465530530,0.1,167.1,167.02,2.32553457]
[1729465530854,0.1,167.09,167.03,2.32553457]
[1729465531047,0.1,167.09,167.04,2.32553457]
[1729465531247,0.1,167.08,167.05,2.32553457]
[1729465531553,0.1,167.08,167.06,2.32553457]
[1729465531748,0.1,167.08,166.98,5.90035025]
[1729465531934,0.1,167.08,166.99,2.32589389]
[1729465532339,0.1,167.07,166.99,2.32589389]
[1729465532553,4.7875,167.11,166.99,2.32589389]
[1729465532554,0.1,167.04,166.99,2.32589389]
[1729465533250,0.1,167.04,166.93,8.22624414]
[1729465533458,0.1,167.04,166.94,2.32589389]
[1729465533771,0.1,167.03,166.94,2.32589389]
[1729465534132,0.1,167.03,166.93,5.90035025]
[1729465534333,0.1,167.02,166.93,5.90035025]
[1729465534540,0.1,167.02,166.94,20.0]
[1729465534762,0.1,167.04,166.94,20.0]
[1729465535055,0.1,167.03,166.94,32.34744533]
[1729465535451,0.1,167.03,166.94,26.44709508]